bitfinex/quotes_ETHUSD_20250425
["timestamp","ask_amount","ask_price","bid_price","bid_amount"]
[1745590949770,5.62831782,1776.8,1776.4,7.29520001]
[1745590950059,3.0,1776.8,1776.4,7.29520001]
[1745590950267,8.62828945,1776.8,1776.4,7.29520001]
[1745590950426,5.62891624,1776.6,1776.4,6.63200001]
[1745590950627,5.62831759,1776.8,1776.4,6.63200001]
[1745590950927,8.62793392,1776.9,1776.4,6.71460001]
[1745590951136,6.60305915,1777.3,1776.4,6.71460001]
[1745590951466,3.0,1777.1,1776.4,7.38606001]
[1745590951684,0.66030592,1777.2,1776.4,7.38606001]
[1745590951685,6.70274587,1776.5,1776.4,1e-08]
[1745590951831,9.70274587,1776.5,1776.4,1e-08]
[1745590952236,10.25274587,1776.5,1776.4,1e-08]
[1745590952672,5.63072909,1776.0,1775.8,6.633]
[1745590952872,5.63094768,1775.9,1775.8,6.633]
[1745590953075,5.63072909,1776.0,1775.8,6.633]
[1745590953234,5.62952704,1776.4,1775.8,6.633]
[1745590953434,6.60305915,1776.7,1775.9,0.656]
[1745590953435,5.62872903,1776.6,1775.9,0.656]
[1745590953679,3.0,1776.5,1776.0,16.882]
[1745590953838,5.62983291,1776.3,1776.0,16.882]
[1745590954040,0.42024623,1776.6,1776.0,16.882]
[1745590954041,5.62951359,1776.4,1776.0,16.882]
[1745590954268,5.62921973,1776.5,1776.0,16.882]
[1745590954598,5.62859231,1776.7,1776.0,16.882]
[1745590954797,6.04448152,1776.9,1776.0,16.882]
[1745590955006,5.62829527,1776.8,1776.1,1.6882]
[1745590955208,6.04448152,1776.9,1776.1,1.6882]
[1745590955209,5.62796771,1776.9,1776.2,0.656]
[1745590955502,5.62904069,1776.6,1776.2,6.634]
[1745590955811,5.62939146,1776.4,1776.2,6.634]
[1745590955992,8.62967967,1776.3,1776.2,6.634]
[1745590956170,8.6303136,1776.1,1776.0,16.882]
[1745590956372,5.62918381,1776.5,1776.0,17.538]
[1745590956571,5.63015003,1776.2,1776.0,17.538]
[1745590956770,5.6303136,1776.1,1776.0,16.882]
[1745590956979,8.6303136,1776.1,1776.0,23.516]
[1745590957395,5.63018085,1776.2,1776.0,23.516]
[1745590957565,5.63016495,1776.2,1776.0,25.8676]
[1745590957894,5.63012047,1776.2,1776.0,25.8676]
[1745590958105,0.997,1776.5,1776.0,25.8676]
[1745590958308,5.63018932,1776.2,1776.0,25.8676]
[1745590958515,5.63018932,1776.2,1776.0,23.516]
[1745590958862,5.6303136,1776.1,1776.0,23.516]
[1745590959060,3.0,1776.1,1776.0,23.516]
[1745590959261,8.62992866,1776.3,1776.0,23.516]
[1745590959494,5.62809545,1776.8,1776.0,23.516]
[1745590959680,3.56280955,1776.7,1776.0,23.516]
[1745590959881,3.0,1776.5,1776.1,0.656]
[1745590960057,11.25662591,1776.8,1776.1,0.656]
[1745590960257,7.35216129,1777.2,1776.1,6.28604851]
[1745590960497,5.159,1778.0,1776.1,6.28604851]
[1745590960498,0.41209857,1777.3,1776.4,0.656]
[1745590960699,5.62741319,1777.1,1776.5,6.635]
[1745590960899,5.62619556,1777.4,1776.5,6.635]
[1745590961105,3.0,1777.2,1776.5,12.26392009]
[1745590961266,5.62719472,1777.1,1776.5,6.635]
[1745590961464,5.62747721,1777.0,1776.6,0.6635]
[1745590961689,9.04769803,1777.4,1776.5,6.635]
[1745590961690,5.62824592,1776.8,1776.5,6.635]
[1745590961895,0.42147405,1777.4,1776.5,6.635]
[1745590962104,5.62666337,1777.3,1776.5,12.26386537]
[1745590962405,8.65521008,1777.5,1776.6,0.656]
[1745590962560,8.65521008,1777.5,1776.7,5.62814239]
[1745590962765,3.0,1777.4,1776.8,0.56281424]
[1745590963009,3.02909883,1777.5,1776.9,22.51571157]
[1745590963210,8.65522956,1777.5,1777.0,7.291]
[1745590963517,3.02909883,1777.5,1777.0,12.91845072]
[1745590963815,3.02909883,1777.5,1777.0,7.291]
[1745590964019,5.62620255,1777.4,1777.0,9.7089]
[1745590964314,8.65516717,1777.5,1777.0,9.7089]
[1745590964614,8.62642292,1777.4,1777.0,0.656]
[1745590964770,3.0,1777.4,1777.1,6.634]
[1745590965162,3.02909883,1777.5,1777.1,6.634]
[1745590966090,5.6263168,1777.4,1777.1,6.634]
[1745590966399,5.62666048,1777.3,1777.1,6.634]
[1745590966607,5.62636264,1777.4,1777.1,6.634]
[1745590966903,3.02909883,1777.5,1777.1,6.634]
[1745590967092,5.62638974,1777.4,1777.1,6.634]
[1745590967279,5.62654881,1777.3,1777.1,6.634]
[1745590967478,3.02909883,1777.5,1777.1,6.634]
[1745590967966,8.6550932,1777.5,1777.1,6.634]
[1745590968166,5.62746201,1777.0,1776.9,16.888]
[1745590968406,5.62746201,1777.0,1776.9,23.521]
[1745590969112,6.04786502,1777.0,1776.9,23.521]
[1745590969312,10.06396502,1777.0,1776.9,16.888]
[1745590969523,10.06396502,1777.0,1776.9,23.521]
[1745590969783,11.63307887,1777.0,1776.9,23.521]
[1745590970538,1.98951686,1777.0,1776.9,23.521]
[1745590970739,5.62694603,1777.2,1776.9,23.521]
[1745590970958,4.45718156,1777.5,1776.9,23.521]
[1745590971186,4.88619177,1777.5,1776.9,24.177]
[1745590971329,5.62746201,1777.0,1776.9,23.521]
[1745590971756,5.62726921,1777.1,1776.9,23.521]
[1745590972180,3.0,1777.3,1776.9,23.521]
[1745590972472,5.62746201,1777.0,1776.9,23.521]
[1745590972676,5.62745748,1777.1,1776.9,23.521]
[1745590973127,3.0,1777.1,1776.9,23.521]
[1745590973502,0.3,1777.3,1776.9,23.521]
[1745590974045,14.71031704,1777.5,1776.9,23.521]
[1745590974245,5.62621036,1777.4,1776.9,23.521]
[1745590974498,3.45810904,1777.5,1776.9,23.521]
[1745590974674,8.65511138,1777.5,1777.0,0.656]
[1745590974881,8.65512345,1777.5,1777.0,0.656]
[1745590975046,8.65512345,1777.5,1777.0,3.0737]
[1745590975047,3.02909883,1777.5,1777.0,3.0737]
[1745590975549,3.02909883,1777.5,1777.1,5.62702336]
[1745590975951,3.02909883,1777.5,1777.0,8.70115204]
[1745590976193,3.02909883,1777.5,1777.0,8.7009531]
[1745590976398,8.65509913,1777.5,1777.0,3.0737]
[1745590976580,3.02909883,1777.5,1777.0,0.656]
[1745590976753,5.62632177,1777.4,1777.1,6.633]
[1745590977260,5.62620059,1777.4,1777.1,6.633]
[1745590977573,14.28130951,1777.5,1777.1,6.633]
[1745590977780,7.05447788,1777.4,1777.1,6.633]
[1745590978092,5.62625814,1777.4,1777.1,6.633]
[1745590978273,8.65514114,1777.5,1777.1,6.633]
[1745590978651,5.62652113,1777.3,1777.1,6.633]
[1745590978879,5.62630544,1777.4,1777.1,6.633]
[1745590979089,8.65504903,1777.5,1777.1,6.633]
[1745590979250,0.8655049,1777.4,1777.1,6.633]
[1745590979884,8.65499243,1777.5,1777.1,6.633]
[1745590980062,8.65508023,1777.5,1777.1,6.633]
[1745590980269,3.02909883,1777.5,1777.1,6.633]
[1745590980626,5.62682871,1777.2,1777.1,6.633]
[1745590980890,5.62653152,1777.3,1777.0,0.656]
[1745590981093,5.62764182,1777.0,1776.7,23.618]
[1745590981299,5.6278445,1776.9,1776.8,6.649]
[1745590981499,3.0,1776.9,1776.5,6.649]
[1745590981804,8.62872903,1776.6,1776.5,6.649]
[1745590982157,5.62941243,1776.4,1776.0,17.5954]
[1745590982391,11.25906789,1776.4,1776.1,6.649]
[1745590982552,5.62974256,1776.3,1776.1,6.649]
[1745590982757,6.05912478,1776.4,1776.1,6.649]
[1745590983671,0.42957433,1776.4,1776.1,6.649]
[1745590983874,3.0,1776.6,1776.2,0.7134]
[1745590984075,5.62759783,1777.0,1776.3,6.08]
[1745590984276,5.62669876,1777.3,1776.3,6.08]
[1745590984485,5.62785968,1776.9,1776.3,6.08]
[1745590984722,5.6283849,1776.8,1776.3,6.08]
[1745590984863,5.6294875,1776.4,1776.1,6.65]
[1745590985063,5.62953471,1776.4,1776.1,6.65]
[1745590985263,3.0,1776.7,1776.1,6.65]
[1745590985479,5.62926079,1776.5,1776.1,6.65]
[1745590985765,0.3,1776.6,1776.1,6.65]
[1745590985766,5.62950849,1776.4,1776.1,6.65]
[1745590985958,5.62950849,1776.4,1776.1,12.73]
[1745590986179,3.3,1776.6,1776.1,12.73]
[1745590986699,5.62924902,1776.5,1776.1,12.73]
[1745590986871,5.62948414,1776.4,1776.1,12.73]
[1745590987077,6.52212977,1776.5,1776.1,12.73]
[1745590987262,5.62854596,1776.7,1776.1,12.73]
[1745590987468,5.62902835,1776.6,1776.2,0.7134]
[1745590987894,0.41906912,1776.9,1776.3,6.08]
[1745590988197,5.62857863,1776.7,1776.3,6.08]
[1745590988624,6.1914426,1776.7,1776.3,6.08]
[1745590988780,5.62914939,1776.5,1776.3,6.08]
[1745590989219,5.62892712,1776.6,1776.3,6.08]
[1745590989425,5.62935432,1776.5,1776.4,6.651]
[1745590989581,9.75517556,1776.5,1776.4,6.651]
[1745590989783,5.6303136,1776.1,1776.0,23.533]
[1745590990224,8.6303136,1776.1,1776.0,23.533]
[1745590990691,5.62957535,1776.4,1776.0,23.533]
[1745590990895,1.65935786,1776.7,1776.0,31.55039587]
[1745590991082,5.62891907,1776.6,1776.1,0.7134]
[1745590991421,3.0,1776.6,1776.2,6.651]
[1745590991615,8.62884677,1776.6,1776.2,6.651]
[1745590991825,5.62915315,1776.5,1776.2,6.651]
[1745590992130,0.56285786,1776.7,1776.2,12.731]
[1745590992294,5.62843363,1776.7,1776.2,12.731]
[1745590992928,5.62809545,1776.8,1776.2,12.731]
[1745590993105,5.62916135,1776.5,1776.2,12.731]
[1745590993291,5.62847064,1776.7,1776.2,12.731]
[1745590993497,3.0,1776.7,1776.2,12.731]
[1745590993690,5.62967967,1776.3,1776.2,6.08]
[1745590993889,5.62967967,1776.3,1776.2,12.731]
[1745590994095,5.629496,1776.4,1776.2,12.731]
[1745590994338,5.9288491,1776.6,1776.2,12.731]
[1745590995090,0.3,1776.6,1776.2,12.731]
[1745590995429,5.62917605,1776.5,1776.3,0.7134]
[1745590995616,5.62954848,1776.4,1776.2,12.731]
[1745590995924,5.62950285,1776.4,1776.2,12.731]
[1745590996305,5.62962674,1776.4,1776.2,12.731]
[1745590996514,5.62923293,1776.5,1776.2,12.731]
[1745590996711,6.49215622,1776.5,1776.2,12.731]
[1745590997028,5.62852068,1776.7,1776.2,12.731]
[1745590997210,8.62854826,1776.7,1776.2,12.731]
[1745590997420,11.25725159,1776.7,1776.2,12.731]
[1745590997620,11.25732466,1776.7,1776.2,12.731]
[1745590997791,5.62853237,1776.7,1776.2,12.731]
[1745590997993,6.49138561,1776.7,1776.2,12.731]
[1745590998224,5.62923307,1776.5,1776.2,12.731]
[1745590998428,5.62955324,1776.4,1776.2,12.731]
[1745590998634,5.62967967,1776.3,1776.2,12.731]
[1745590998925,3.0,1776.4,1776.2,12.731]
[1745590999127,3.0,1776.5,1776.2,12.731]
[1745590999330,8.6290849,1776.5,1776.2,12.731]
[1745590999626,15.12142233,1776.5,1776.2,12.731]
[1745590999829,5.62967967,1776.3,1776.2,12.731]
[1745591000191,8.62967967,1776.3,1776.2,6.651]
[1745591000402,5.63158191,1775.7,1775.6,12.732]
[1745591000647,9.1947401,1775.7,1775.6,12.732]
[1745591001103,10.2385401,1775.7,1775.6,12.732]
[1745591001307,5.63270463,1775.4,1775.2,22.968]
[1745591001511,5.63285078,1775.3,1775.2,22.968]
[1745591001712,5.63270463,1775.4,1775.2,22.968]
[1745591002089,5.63285078,1775.3,1775.2,22.968]
[1745591002293,5.63285078,1775.3,1775.1,6.702]
[1745591002294,25.96714509,1775.2,1775.1,6.702]
[1745591002601,0.42065622,1775.2,1775.1,6.702]
[1745591002816,3.0,1775.4,1775.1,6.702]
[1745591003019,5.63232909,1775.5,1775.1,6.702]
[1745591003020,8.6323501,1775.5,1775.1,6.702]
[1745591003226,9.6230896,1775.7,1775.1,0.05]
[1745591003394,3.99132915,1775.7,1775.2,6.653]
[1745591003587,6.03127531,1775.6,1775.2,6.653]
[1745591003833,6.03127531,1775.6,1775.1,0.05]
[1745591003834,5.63316809,1775.2,1775.1,0.05]
[1745591004035,9.66165078,1775.3,1775.1,0.05]
[1745591004207,12.23622724,1775.2,1775.1,0.05]
[1745591004405,12.23622724,1775.2,1774.8,6.60863]
[1745591004406,5.63412023,1774.9,1774.8,6.60863]
[1745591004595,5.63402888,1775.0,1774.8,6.60863]
[1745591005015,8.63365541,1775.1,1774.8,6.60863]
[1745591005345,6.49723697,1775.0,1774.8,6.60863]
[1745591005493,6.49737683,1775.0,1774.8,6.60863]
[1745591005693,0.86340289,1775.0,1774.8,6.60863]
[1745591005933,7.09167365,1775.2,1774.8,6.60863]
[1745591006237,0.41715216,1775.2,1774.8,6.60863]
[1745591006436,3.0,1775.3,1774.9,6.08]
[1745591006731,5.6327024,1775.4,1775.0,0.7134]
[1745591006732,5.63255341,1775.4,1775.0,0.7134]
[1745591006936,0.39913292,1775.6,1775.1,6.08]
[1745591007152,6.71805686,1776.0,1775.2,6.24100414]
[1745591007392,0.42302041,1776.0,1775.3,13.4474]
[1745591007510,6.717125,1776.3,1775.5,5.63202102]
[1745591007713,5.62962373,1776.4,1775.6,5.63184954]
[1745591008045,0.56296237,1776.3,1775.8,0.7134]
[1745591008212,1.0604,1776.6,1775.9,12.734]
[1745591008213,0.41863117,1776.5,1775.9,12.734]
[1745591008416,5.62892409,1776.6,1775.9,12.734]
[1745591008928,10.50404477,1776.7,1775.9,18.36481516]
[1745591009261,4.87550483,1776.7,1775.9,12.734]
[1745591009401,4.87550483,1776.7,1776.3,5.62948482]
[1745591009602,0.05,1776.9,1776.4,7.2554]
[1745591010016,5.62830716,1776.8,1776.4,7.2554]
[1745591010200,5.62830716,1776.8,1775.9,0.7134]
[1745591010201,7.66615915,1776.8,1775.9,0.7134]
[1745591010402,5.62893691,1776.6,1776.1,6.542]
[1745591010637,6.19196201,1776.5,1776.1,6.542]
[1745591010840,3.0,1776.7,1776.1,6.542]
[1745591011006,3.0,1776.8,1776.2,0.7134]
[1745591011212,0.05,1776.9,1776.2,6.08]
[1745591011413,0.05,1776.9,1776.7,0.7042]
[1745591011663,0.05,1776.9,1776.8,6.541]
[1745591012222,0.05,1776.9,1776.8,7.26552]
[1745591012542,0.05,1776.9,1776.8,6.541]
[1745591012752,5.67790268,1776.9,1776.3,6.541]
[1745591012963,0.05,1776.9,1776.3,12.17049526]
[1745591013119,0.05,1776.9,1776.6,5.62861421]
[1745591013450,0.05,1776.9,1776.6,6.71328142]
[1745591013658,0.05,1776.9,1776.8,5.62809545]
[1745591013815,0.05,1776.9,1776.8,12.87329545]
[1745591014016,0.05,1776.9,1776.8,7.2452]
[1745591015618,0.05,1776.9,1776.8,18.95329545]
[1745591015827,0.05,1776.9,1776.8,21.41145438]
[1745591016058,0.05,1776.9,1776.8,24.41145438]
[1745591016262,0.05,1776.9,1776.8,7.2442]
[1745591016419,0.05,1776.9,1776.8,13.3242]
[1745591016737,0.05,1776.9,1776.8,12.62]
[1745591017969,0.05,1776.9,1776.8,6.08]
[1745591018119,0.05,1776.9,1776.8,13.228]
[1745591018318,5.67481475,1777.9,1777.1,5.62691962]
[1745591018520,0.05,1777.9,1777.3,0.7042]
[1745591018760,0.05,1777.9,1777.4,12.57]
[1745591018923,0.05,1777.9,1777.4,6.03]
[1745591019115,0.61745246,1777.9,1777.5,6.54]
[1745591019315,0.05,1777.9,1777.6,6.03]
[1745591019516,5.67466678,1777.9,1777.6,6.03]
[1745591019760,3.9992,1777.8,1777.2,6.54]
[1745591020062,5.6258102,1777.6,1777.2,6.54]
[1745591020232,5.62634397,1777.4,1777.2,6.54]
[1745591020431,5.62593062,1777.5,1777.2,6.54]
[1745591020679,6.18896843,1777.4,1777.2,6.54]
[1745591020847,8.62611401,1777.5,1777.2,6.54]
[1745591021050,8.62568799,1777.6,1777.2,6.54]
[1745591021251,3.0,1777.6,1777.2,6.54]
[1745591021438,9.62431975,1777.8,1777.2,6.54]
[1745591021637,5.62525251,1777.7,1777.2,12.57]
[1745591021833,1.52495723,1777.7,1777.2,12.57]
[1745591022024,5.62606415,1777.5,1777.2,12.57]
[1745591022221,5.62603551,1777.5,1777.2,12.57]
[1745591022458,8.62575812,1777.6,1777.2,12.57]
[1745591022629,5.62599581,1777.5,1777.3,6.538]
[1745591022832,5.62559949,1777.6,1777.3,6.538]
[1745591023051,1.56555774,1777.6,1777.3,6.538]
[1745591023271,5.62558547,1777.6,1777.3,6.538]
[1745591023449,5.62561513,1777.6,1777.3,6.538]
[1745591023651,5.62619556,1777.4,1777.3,6.538]
[1745591023854,3.9992,1777.8,1777.3,6.538]
[1745591024169,5.62557044,1777.6,1777.3,6.538]
[1745591024375,6.18812748,1777.6,1777.3,6.538]
[1745591024664,0.05,1777.9,1777.4,0.7042]
[1745591024826,5.62536138,1777.7,1777.4,0.7042]
[1745591025025,5.62536138,1777.7,1777.3,6.538]
[1745591025026,3.05,1777.9,1777.3,6.538]
[1745591025222,5.62529211,1777.7,1777.3,6.538]
[1745591025653,5.62543695,1777.7,1777.3,6.538]
[1745591025851,6.75049044,1777.7,1777.3,6.538]
[1745591026085,5.62616725,1777.5,1777.3,6.538]
[1745591026275,5.62786534,1776.9,1776.7,12.568]
[1745591026446,8.62682871,1777.2,1776.7,12.568]
[1745591026647,5.62799533,1776.9,1776.7,12.568]
[1745591026866,5.62809545,1776.8,1776.7,12.568]
[1745591029953,6.1905423,1776.9,1776.5,6.537]
[1745591030161,5.62872903,1776.6,1776.5,6.537]
[1745591032143,5.62999662,1776.2,1776.1,6.537]
[1745591032970,5.62967967,1776.3,1776.1,6.537]
[1745591032971,3.0,1776.3,1776.1,6.537]
[1745591033173,5.62983626,1776.3,1776.1,6.537]
[1745591033755,6.19207754,1776.5,1776.1,6.537]
[1745591033955,5.62919526,1776.5,1776.1,6.537]
[1745591034181,5.62890192,1776.6,1776.1,7.2412]
[1745591034389,5.62915814,1776.5,1776.2,6.03]
[1745591034551,5.6288673,1776.6,1776.2,6.03]
[1745591035089,5.62831268,1776.8,1776.2,6.03]
[1745591035284,0.5627462,1776.9,1776.3,6.03]
[1745591035486,1.0649,1777.3,1776.6,5.62862479]
[1745591035685,5.62637214,1777.4,1776.7,12.568]
[1745591035846,5.62637214,1777.4,1776.8,6.03]
[1745591035847,5.62661028,1777.3,1776.8,6.03]
[1745591036051,5.62667509,1777.3,1776.8,6.03]
[1745591036285,5.62686491,1777.2,1776.8,6.03]
[1745591036493,0.56266751,1777.3,1776.8,6.03]
[1745591036794,5.62633366,1777.4,1776.9,6.7342]
[1745591036998,5.62605399,1777.5,1776.9,0.7042]
[1745591037161,5.62650604,1777.4,1776.9,0.7042]
[1745591037582,6.7504218,1777.7,1776.9,0.7042]
[1745591037891,5.62573814,1777.6,1776.9,7.00528419]
[1745591038077,5.62567215,1777.6,1776.9,1.37762]
[1745591038282,12.37598472,1777.7,1776.9,7.00536588]
[1745591038478,6.74446034,1777.9,1777.1,5.62701734]
[1745591038699,5.62504303,1777.8,1777.3,0.7042]
[1745591039009,5.67485873,1777.9,1777.3,0.7042]
[1745591039163,5.67485873,1777.9,1777.2,12.568]
[1745591039164,5.62503082,1777.8,1777.2,12.568]
[1745591039364,5.62492968,1777.8,1777.2,12.568]
[1745591039607,5.62575085,1777.6,1777.2,12.568]
[1745591039760,5.62609123,1777.5,1777.2,12.568]
[1745591040213,5.62588562,1777.5,1777.2,12.568]
[1745591040510,5.62608316,1777.5,1777.2,12.568]
[1745591040663,6.65305915,1777.9,1777.2,12.568]
[1745591040664,0.47241038,1777.9,1777.3,6.575]
[1745591040859,0.05,1777.9,1777.4,6.03]
[1745591041109,5.67464019,1777.9,1777.5,0.7042]
[1745591041264,0.05,1777.9,1777.5,0.7042]
[1745591042059,5.67475499,1777.9,1777.5,0.7042]
[1745591042259,0.05,1777.9,1777.4,6.03]
[1745591042506,5.62502963,1777.8,1777.4,6.03]
[1745591042666,3.61743795,1777.9,1777.4,6.03]
[1745591042868,6.24207617,1777.9,1777.4,6.03]
[1745591043096,0.05,1777.9,1777.4,6.03]
[1745591043498,5.6747246,1777.9,1777.4,6.03]
[1745591043690,0.05,1777.9,1777.4,6.03]
[1745591043888,0.05,1777.9,1777.5,6.03]
[1745591044074,0.05,1777.9,1777.6,0.417]
[1745591044407,5.6747372,1777.9,1777.6,6.447]
[1745591044703,1.17992415,1777.9,1777.6,6.447]
[1745591044879,0.05,1777.9,1777.6,6.447]
[1745591045613,0.05,1777.9,1777.6,12.07243172]
[1745591045799,0.05,1777.9,1777.7,5.62520345]
[1745591046001,0.05,1777.9,1777.8,12.603]
[1745591046924,0.05,1777.9,1777.8,18.64492968]
[1745591047233,0.05,1777.9,1777.8,21.07193151]
[1745591047399,0.05,1777.9,1777.8,24.07193151]
[1745591047604,0.05,1777.9,1777.8,15.44700183]
[1745591047813,0.05,1777.9,1777.8,13.02]
[1745591050999,0.05,1777.9,1777.8,18.64492968]
[1745591051302,5.62268099,1778.6,1778.0,5.98]
[1745591051508,6.5946212,1778.7,1778.0,11.60419414]
[1745591051702,5.62270593,1778.6,1778.0,5.98]
[1745591051898,6.28207867,1778.6,1778.0,5.98]
[1745591052521,5.62315251,1778.4,1778.0,5.98]
[1745591052725,3.0,1778.5,1778.0,5.98]
[1745591052921,6.04278818,1778.8,1778.1,0.417]
[1745591053124,0.05,1778.9,1778.1,1.0567]
[1745591053319,5.62252888,1778.6,1778.1,0.417]
[1745591053651,5.62230819,1778.7,1778.1,0.417]
[1745591053979,0.05,1778.9,1778.2,5.98]
[1745591053980,8.67153629,1778.9,1778.2,5.98]
[1745591054261,0.05,1778.9,1778.4,6.03984768]
[1745591054420,0.05,1778.9,1778.5,6.58398477]
[1745591055455,0.05,1778.9,1778.5,12.20639585]
[1745591055638,0.05,1778.9,1778.6,5.62238977]
[1745591055838,0.05,1778.9,1778.5,12.20639585]
[1745591056070,0.05,1778.9,1778.5,5.98]
[1745591056374,0.05,1778.9,1778.5,11.60260959]
[1745591056583,0.05,1778.9,1778.5,5.98]
[1745591057277,0.05,1778.9,1778.7,6.03899278]
[1745591057458,0.05,1778.9,1778.8,6.569]
[1745591057657,0.05,1778.9,1778.8,12.549]
[1745591060209,5.928,1780.3,1778.8,10.1156]
[1745591060411,2.83959127,1781.6,1778.8,10.1156]
[1745591060412,5.61687985,1780.4,1779.5,5.61934748]
[1745591060705,1.24804022,1780.5,1779.6,23.436]
[1745591060706,0.9947,1780.5,1779.6,23.436]
[1745591060855,6.61135127,1780.5,1779.6,23.436]
[1745591061051,5.61578338,1780.7,1779.4,6.569]
[1745591061052,5.66845153,1779.9,1779.4,6.569]
[1745591061257,8.66844729,1779.9,1779.5,6.569]
[1745591061483,0.86684473,1779.8,1779.4,6.569]
[1745591061668,0.05,1779.9,1779.4,12.18872067]
[1745591061879,0.05,1779.9,1779.5,0.417]
[1745591062491,3.05,1779.9,1779.5,0.417]
[1745591062865,0.05,1779.9,1779.5,0.417]
[1745591064798,5.61927051,1779.6,1779.4,6.569]
[1745591064964,0.56192705,1779.5,1779.4,6.569]
[1745591065696,5.61910467,1779.7,1779.4,6.569]
[1745591066017,8.61898491,1779.7,1779.4,6.569]
[1745591066377,3.0,1779.7,1779.4,6.569]
[1745591066699,0.9079,1779.8,1779.4,6.569]
[1745591066868,0.05,1779.9,1779.4,6.986]
[1745591067401,5.61912796,1779.7,1779.4,6.569]
[1745591067635,0.5619128,1779.6,1779.4,6.569]
[1745591067838,5.66851046,1779.9,1779.4,12.549]
[1745591068040,5.61877986,1779.8,1779.4,12.549]
[1745591068209,0.05,1779.9,1779.4,12.549]
[1745591068409,5.61904105,1779.7,1779.4,12.549]
[1745591068617,5.6188132,1779.8,1779.4,12.549]
[1745591068925,0.56188132,1779.7,1779.4,12.549]
[1745591069131,0.05,1779.9,1779.4,12.549]
[1745591069440,5.66830986,1779.9,1779.4,12.549]
[1745591069799,0.05,1779.9,1779.4,12.549]
[1745591069999,0.05,1779.9,1779.4,18.16878816]
[1745591070267,0.05,1779.9,1779.4,12.549]
[1745591070405,5.61871556,1779.8,1779.4,12.549]
[1745591070604,0.56187156,1779.7,1779.4,12.549]
[1745591070955,5.66841102,1779.9,1779.4,12.549]
[1745591071243,0.05,1779.9,1779.4,12.549]
[1745591071419,0.05,1779.9,1779.6,0.4157]
[1745591072037,5.61924027,1779.6,1779.5,5.98]
[1745591072237,5.61913241,1779.7,1779.5,5.98]
[1745591072441,5.61924027,1779.6,1779.5,5.98]
[1745591073028,4.12377998,1779.7,1779.5,5.98]
[1745591073218,9.74276344,1779.7,1779.5,5.98]
[1745591073415,4.12377998,1779.7,1779.5,5.98]
[1745591073636,9.74270696,1779.7,1779.5,5.98]
[1745591073842,5.6684614,1779.9,1779.5,5.98]
[1745591074038,0.05,1779.9,1779.5,5.98]
[1745591074743,0.05,1779.9,1779.6,6.3957]
[1745591074911,0.05,1779.9,1779.6,12.01484917]
[1745591075141,0.05,1779.9,1779.7,7.18148492]
[1745591075638,6.57870837,1780.5,1779.9,5.93]
[1745591075843,6.57870837,1780.5,1780.0,6.365]
[1745591075844,5.61691663,1780.4,1780.0,6.365]
[1745591076038,5.61650837,1780.5,1780.1,5.93]
[1745591076239,6.57827052,1780.7,1780.1,5.93]
[1745591076439,3.0,1780.6,1780.1,7.20107]
[1745591077024,6.57821951,1780.7,1780.1,7.20107]
[1745591077271,0.05,1780.9,1780.3,0.4157]
[1745591077481,5.61560256,1780.8,1780.4,5.93]
[1745591077768,11.28063724,1780.9,1780.5,6.364]
[1745591077970,0.05,1780.9,1780.5,6.364]
[1745591078173,0.05,1780.9,1780.6,5.93]
[1745591078334,0.05,1780.9,1780.6,11.5460449]
[1745591078675,0.05,1780.9,1780.8,0.4157]
[1745591078888,0.05,1780.9,1780.8,6.3457]
[1745591079075,5.66513841,1780.9,1780.8,5.93]
[1745591079373,0.05,1780.9,1780.8,5.93]
[1745591080271,0.05,1780.9,1780.8,8.36840224]
[1745591080471,0.05,1780.9,1780.8,6.3457]
[1745591080633,0.05,1780.9,1780.8,5.93]
[1745591080831,3.0,1780.7,1779.9,5.93]
[1745591081030,3.0,1780.7,1779.9,12.293]
[1745591081031,5.61660801,1780.5,1779.9,12.293]
[1745591081235,5.61675686,1780.4,1779.9,13.5223]
[1745591081435,5.61711248,1780.3,1779.9,12.293]
[1745591081747,5.6174751,1780.2,1779.9,12.293]
[1745591081951,5.61749593,1780.2,1779.9,12.293]
[1745591082148,5.6171536,1780.3,1779.9,12.293]
[1745591082347,5.61656896,1780.5,1780.0,6.363]
[1745591082575,5.61727976,1780.3,1780.0,6.363]
[1745591083178,0.8616569,1780.5,1780.0,6.363]
[1745591083364,5.61766192,1780.1,1780.0,6.363]
[1745591083565,5.61716606,1780.3,1780.0,6.363]
[1745591083932,11.23446754,1780.3,1780.0,6.363]
[1745591084136,5.61748293,1780.2,1780.0,6.363]
[1745591084364,5.61727184,1780.3,1780.0,6.363]
[1745591084574,5.61703083,1780.3,1780.0,6.363]
[1745591084880,5.61766192,1780.1,1780.0,6.363]
[1745591085240,5.61748407,1780.2,1780.0,6.363]
[1745591085449,5.61748407,1780.2,1780.0,12.293]
[1745591085945,3.0,1780.4,1780.0,12.293]
[1745591085946,8.61688508,1780.4,1780.0,12.293]
[1745591086137,5.61714868,1780.3,1780.0,12.293]
[1745591086746,6.47858759,1780.4,1780.0,12.293]
[1745591086984,6.4785486,1780.4,1780.0,12.293]
[1745591087356,5.61586644,1780.7,1780.1,5.93]
[1745591087561,5.61613496,1780.6,1780.1,5.93]
[1745591087776,5.61720036,1780.3,1780.1,5.93]
[1745591087974,5.61734636,1780.2,1780.1,5.93]